[Event "CAMPEONATO NACIONAL ABSOLUTO DE CHILE 2019"]
[Site "Torre ENTEL, Chile"]
[Date "????.??.??"]
[Round "7.6"]
[White "Abarca Gonzalez, Nicolas"]
[Black "Lopez Silva, Hugo"]
[Result "1/2-1/2"]
[TimeControl "90 minutos mas 30 segundos incremento por movida"]
[WhiteFideId "3409422"]
[BlackFideId "3403874"]
[WhiteElo "2418"]
[BlackElo "2413"]

1. Nf3 {[%clk 01:30:56]} {[%emt 00:00:04]} Nf6 {[%clk 01:20:38]} {[%emt
00:10:22]} 2. g3 {[%clk 01:31:21]} {[%emt 00:00:05]} g6 {[%clk 01:20:19]}
{[%emt 00:00:49]} 3. b3 {[%clk 01:31:47]} {[%emt 00:00:05]} Bg7 {[%clk
01:20:27]} {[%emt 00:00:21]} 4. Bb2 {[%clk 01:32:12]} {[%emt 00:00:05]} c5
{[%clk 01:20:11]} {[%emt 00:00:46]} 5. c4 {[%clk 01:32:12]} {[%emt 00:00:30]}
d6 {[%clk 01:20:12]} {[%emt 00:00:29]} 6. Bg2 {[%clk 01:32:36]} {[%emt
00:00:06]} e5 {[%clk 01:20:34]} {[%emt 00:00:08]} 7. O-O {[%clk 01:32:32]}
{[%emt 00:00:33]} O-O {[%clk 01:21:01]} {[%emt 00:00:03]} 8. Nc3 {[%clk
01:31:57]} {[%emt 00:01:06]} Nc6 {[%clk 01:20:53]} {[%emt 00:00:38]} 9. Ne1
{[%clk 01:28:28]} {[%emt 00:03:59]} Be6 {[%clk 01:15:16]} {[%emt 00:06:07]} 10.
Nc2 {[%clk 01:28:48]} {[%emt 00:00:10]} d5 {[%clk 01:14:07]} {[%emt 00:01:39]}
11. Ba3 {[%clk 01:15:59]} {[%emt 00:13:19]} b6 {[%clk 00:45:18]} {[%emt
00:29:19]} 12. e3 {[%clk 00:16:42]} {[%emt 00:59:46]} Re8 {[%clk 00:12:38]}
{[%emt 00:33:10]} 13. d4 {[%clk 00:15:40]} {[%emt 00:01:32]} exd4 {[%clk
00:12:27]} {[%emt 00:00:42]} 14. exd4 {[%clk 00:16:04]} {[%emt 00:00:06]} Nxd4
{[%clk 00:12:25]} {[%emt 00:00:32]} 15. Nxd4 {[%clk 00:12:33]} {[%emt
00:04:00]} cxd4 {[%clk 00:12:40]} {[%emt 00:00:14]} 16. Nb5 {[%clk 00:13:02]}
{[%emt 00:00:02]} Qd7 {[%clk 00:12:32]} {[%emt 00:00:38]} 17. Nxd4 {[%clk
00:12:36]} {[%emt 00:00:56]} Bh3 {[%clk 00:12:40]} {[%emt 00:00:21]} 18. Rc1
{[%clk 00:10:02]} {[%emt 00:03:05]} Bxg2 {[%clk 00:11:08]} {[%emt 00:02:02]} 19.
Kxg2 {[%clk 00:10:29]} {[%emt 00:00:03]} dxc4 {[%clk 00:11:34]} {[%emt
00:00:03]} 20. bxc4 {[%clk 00:10:44]} {[%emt 00:00:16]} Rad8 {[%clk 00:11:41]}
{[%emt 00:00:23]} 21. Nb5 {[%clk 00:10:45]} {[%emt 00:00:29]} Qb7+ {[%clk
00:07:16]} {[%emt 00:04:55]} 22. Qf3 {[%clk 00:11:10]} {[%emt 00:00:05]} Qxf3+
{[%clk 00:06:27]} {[%emt 00:01:19]} 23. Kxf3 {[%clk 00:11:35]} {[%emt
00:00:05]} Rd3+ {[%clk 00:06:55]} {[%emt 00:00:01]} 24. Kg2 {[%clk 00:12:02]}
{[%emt 00:00:04]} a6 {[%clk 00:07:22]} {[%emt 00:00:03]} 25. Nc3 {[%clk
00:08:37]} {[%emt 00:03:54]} Ng4 {[%clk 00:01:20]} {[%emt 00:06:32]} 26. Nb1
{[%clk 00:05:50]} {[%emt 00:03:17]} Bd4 {[%clk 00:00:51]} {[%emt 00:00:59]} 27.
h3 {[%clk 00:04:37]} {[%emt 00:01:43]} Ne5 {[%clk 00:00:35]} {[%emt 00:00:46]}
28. c5 {[%clk 00:02:52]} {[%emt 00:02:15]} bxc5 {[%clk 00:00:31]} {[%emt
00:00:34]} 29. Bxc5 {[%clk 00:03:18]} {[%emt 00:00:04]} Bxc5 {[%emt 00:00:30]}
30. Rxc5 {[%clk 00:03:42]} {[%emt 00:00:05]} Nf3 {[%clk 00:00:32]} {[%emt
00:00:30]} 31. Rc3 {[%clk 00:01:39]} {[%emt 00:02:33]} Red8 {[%clk 00:00:33]}
{[%emt 00:00:29]} 32. Rxd3 {[%clk 00:00:59]} {[%emt 00:01:10]} Rxd3 {[%clk
00:01:02]} {[%emt 00:00:01]} 33. Rc1 {[%clk 00:01:25]} {[%emt 00:00:03]} Ng5
{[%clk 00:00:33]} {[%emt 00:00:59]} 34. Rc6 {[%clk 00:01:04]} {[%emt 00:00:51]}
Rd1 {[%clk 00:00:39]} {[%emt 00:00:24]} 35. Nc3 {[%clk 00:00:45]} {[%emt
00:00:49]} Rc1 {[%clk 00:01:08]} {[%emt 00:00:02]} 36. Nd5 {[%clk 00:01:02]}
{[%emt 00:00:13]} Rd1 {[%clk 00:00:38]} {[%emt 00:01:00]} 37. Nf6+ {[%clk
00:01:07]} {[%emt 00:00:25]} Kg7 {[%clk 00:00:51]} {[%emt 00:00:17]} 38. Rxa6
{[%clk 00:01:36]} {[%emt 00:00:01]} Rd2 {[%clk 00:00:34]} {[%emt 00:00:47]} 39.
h4 {[%clk 00:01:04]} {[%emt 00:01:02]} Ne6 {[%clk 00:01:03]} 40. Ne4 {[%clk
00:01:29]} {[%emt 00:00:05]} Re2 {[%clk 00:00:40]} {[%emt 00:00:53]} 41. Ng5
{[%clk 00:01:05]} {[%emt 00:00:54]} Nxg5 {[%clk 00:00:36]} {[%emt 00:00:34]} 42.
hxg5 {[%clk 00:01:31]} {[%emt 00:00:04]} h6 {[%clk 00:00:33]} {[%emt 00:00:34]}
43. gxh6+ {[%clk 00:01:57]} {[%emt 00:00:04]} Kxh6 {[%clk 00:01:02]} 44. Kf3
{[%clk 00:01:45]} {[%emt 00:00:42]} Rb2 {[%clk 00:01:30]} {[%emt 00:00:02]} 45.
Ra8 {[%clk 00:02:05]} {[%emt 00:00:10]} Kg5 {[%clk 00:01:20]} {[%emt 00:00:39]}
46. a4 {[%clk 00:02:17]} {[%emt 00:00:19]} Rb3+ {[%clk 00:01:16]} {[%emt
00:00:34]} 47. Kg2 {[%clk 00:02:43]} {[%emt 00:00:04]} Ra3 {[%clk 00:01:39]}
{[%emt 00:00:07]} 48. a5 {[%clk 00:03:05]} {[%emt 00:00:07]} Kg4 {[%clk
00:01:11]} {[%emt 00:00:57]} 49. a6 {[%clk 00:03:22]} {[%emt 00:00:14]} Kg5
{[%clk 00:00:34]} {[%emt 00:01:07]} 50. Kh3 {[%clk 00:03:39]} {[%emt 00:00:12]}
Ra2 {[%clk 00:00:37]} {[%emt 00:00:27]} 51. Kg2 {[%clk 00:02:22]} {[%emt
00:01:47]} Ra3 {[%clk 00:00:47]} {[%emt 00:00:20]} 52. Ra7 {[%clk 00:01:52]}
{[%emt 00:01:01]} Kf6 {[%clk 00:00:58]} {[%emt 00:00:19]} 53. Kh3 {[%clk
00:02:10]} {[%emt 00:00:12]} Kg5 {[%clk 00:00:32]} {[%emt 00:00:55]} 54. Rxf7
{[%clk 00:01:56]} {[%emt 00:00:45]} Rxa6 {[%clk 00:01:00]} {[%emt 00:00:02]} 55.
f4+ {[%clk 00:02:19]} {[%emt 00:00:06]} Kh6 {[%clk 00:01:09]} {[%emt 00:00:22]}
56. Kh4 {[%clk 00:02:07]} {[%emt 00:00:43]} Ra4 {[%clk 00:00:46]} {[%emt
00:00:53]} 57. Kg4 {[%clk 00:01:48]} {[%emt 00:00:49]} Rb4 {[%clk 00:00:37]}
{[%emt 00:00:39]} 58. Re7 {[%clk 00:02:04]} {[%emt 00:00:13]} Rb6 {[%clk
00:00:32]} {[%emt 00:00:35]} 59. Kh4 {[%clk 00:02:15]} {[%emt 00:00:19]} Rb4
{[%clk 00:00:39]} {[%emt 00:00:24]} 60. Kh3 {[%clk 00:02:22]} {[%emt 00:00:23]}
Ra4 {[%clk 00:00:38]} {[%emt 00:00:31]} 61. Rf7 {[%clk 00:02:47]} {[%emt
00:00:05]} Ra3 {[%clk 00:00:37]} {[%emt 00:00:32]} 62. Rb7 {[%clk 00:02:01]}
{[%emt 00:01:16]} Rc3 {[%clk 00:00:49]} {[%emt 00:00:17]} 63. Kh4 {[%clk
00:01:26]} {[%emt 00:01:05]} Rc4 {[%clk 00:01:06]} {[%emt 00:00:12]} 64. Rd7
{[%clk 00:01:06]} {[%emt 00:00:51]} Ra4 {[%clk 00:01:21]} {[%emt 00:00:15]} 65.
Rd6 {[%clk 00:01:01]} {[%emt 00:00:35]} Rb4 {[%clk 00:00:51]} {[%emt 00:01:00]}
66. Re6 {[%clk 00:01:21]} {[%emt 00:00:09]} Ra4 {[%clk 00:01:06]} {[%emt
00:00:15]} 67. Kh3 {[%clk 00:01:43]} {[%emt 00:00:08]} Kg7 {[%clk 00:01:20]}
{[%emt 00:00:17]} 68. Kg4 {[%clk 00:02:06]} {[%emt 00:00:07]} Kh6 {[%clk
00:01:37]} {[%emt 00:00:13]} 69. Kf3 {[%clk 00:02:32]} {[%emt 00:00:04]} Ra3+
{[%clk 00:01:15]} {[%emt 00:00:52]} 70. Re3 {[%clk 00:02:53]} {[%emt 00:00:09]}
Ra4 {[%clk 00:00:53]} {[%emt 00:00:52]} 71. g4 {[%clk 00:03:03]} {[%emt
00:00:20]} Kg7 {[%clk 00:00:43]} {[%emt 00:00:40]} 72. Rb3 {[%clk 00:03:24]}
{[%emt 00:00:09]} Ra7 {[%clk 00:00:32]} {[%emt 00:00:41]} 73. Kg3 {[%clk
00:03:34]} {[%emt 00:00:20]} Rf7 {[%clk 00:00:40]} {[%emt 00:00:22]} 74. Rb6
{[%clk 00:03:47]} {[%emt 00:00:17]} Rf8 {[%clk 00:00:32]} {[%emt 00:00:38]} 75.
Kh4 {[%clk 00:03:23]} {[%emt 00:00:53]} Rxf4 {[%clk 00:00:40]} {[%emt
00:00:22]} 76. Kg5 {[%clk 00:03:52]} {[%emt 00:00:01]} Rf7 {[%clk 00:00:36]}
{[%emt 00:00:34]} 77. Rxg6+ {[%emt 00:00:05]} Kh7 78. Rh6+ {[%clk 00:04:35]}
{[%emt 00:00:12]} Kg7 {[%clk 00:01:34]} {[%emt 00:00:01]} 79. Rc6 {[%clk
00:03:23]} {[%emt 00:01:42]} Ra7 {[%clk 00:01:51]} {[%emt 00:00:13]} 80. Kh5
{[%clk 00:03:32]} {[%emt 00:00:21]} Ra5+ {[%clk 00:01:50]} {[%emt 00:00:31]} 81.
g5 {[%clk 00:03:58]} {[%emt 00:00:05]} Ra7 {[%clk 00:02:15]} {[%emt 00:00:04]}
82. Rg6+ {[%clk 00:04:12]} {[%emt 00:00:16]} Kh7 {[%clk 00:02:40]} {[%emt
00:00:05]} 83. Re6 {[%clk 00:04:33]} {[%emt 00:00:09]} Kg7 {[%clk 00:02:50]}
{[%emt 00:00:20]} 84. Kg4 {[%clk 00:04:59]} {[%emt 00:00:05]} Ra4+ {[%clk
00:03:13]} {[%emt 00:00:07]} 85. Kf5 {[%clk 00:05:25]} {[%emt 00:00:04]} Ra5+
{[%clk 00:03:38]} {[%emt 00:00:04]} 86. Re5 {[%clk 00:05:52]} {[%emt 00:00:03]}
Rxe5+ {[%clk 00:03:31]} {[%emt 00:00:37]} 87. Kxe5 {[%clk 00:06:18]} {[%emt
00:00:04]} Kg6 {[%clk 00:03:56]} {[%emt 00:00:05]} 88. Kd4 {[%clk 00:06:46]}
{[%emt 00:00:02]} Kxg5 {[%clk 00:04:21]} {[%emt 00:00:06]} 1/2-1/2

[ePGN "0.1;DGT LiveChess/2.2.3"]

[Event "CAMPEONATO NACIONAL ABSOLUTO DE CHILE 2019"]
[Site "Torre ENTEL, Chile"]
[Date "2019.02.25"]
[Round "8.1"]
[White "Gasic Merino, Franco"]
[Black "Lopez Silva, Hugo"]
[Result "0-1"]
[TimeControl "90 minutos mas 30 segundos incremento por movida"]
[WhiteFideId "3414370"]
[BlackFideId "3403874"]
[WhiteElo "2189"]
[BlackElo "2413"]

1. d4 {[%clk 01:30:59]} {[%emt 00:57:44]} Nf6 {[%clk 01:24:39]} {[%emt
00:06:21]} 2. g3 {[%clk 01:31:25]} {[%emt 00:00:05]} g6 {[%clk 01:23:34]}
{[%emt 00:01:34]} 3. Bg2 {[%clk 01:31:40]} {[%emt 00:00:15]} d5 {[%clk
01:22:17]} {[%emt 00:01:48]} 4. c4 {[%clk 01:31:29]} {[%emt 00:00:42]} c6
{[%clk 01:22:42]} {[%emt 00:00:04]} 5. Nd2 {[%clk 01:31:11]} {[%emt 00:00:47]}
Bg7 {[%clk 01:19:16]} {[%emt 00:03:56]} 6. Ngf3 {[%clk 01:31:19]} {[%emt
00:00:22]} O-O {[%clk 01:17:06]} {[%emt 00:02:40]} 7. O-O {[%clk 01:31:37]}
{[%emt 00:00:13]} a5 {[%clk 01:16:12]} {[%emt 00:01:24]} 8. b3 {[%clk
01:30:39]} {[%emt 00:01:28]} a4 {[%clk 01:12:18]} {[%emt 00:04:25]} 9. b4
{[%clk 01:27:18]} {[%emt 00:03:50]} Ne4 {[%clk 01:03:19]} {[%emt 00:09:30]} 10.
e3 {[%clk 01:16:20]} {[%emt 00:11:27]} Bg4 {[%clk 00:49:36]} {[%emt 00:14:13]}
11. Qc2 {[%clk 01:12:49]} {[%emt 00:04:00]} Bf5 {[%clk 00:48:56]} {[%emt
00:01:12]} 12. Nxe4 {[%clk 01:12:58]} {[%emt 00:00:22]} Bxe4 {[%clk 00:49:13]}
{[%emt 00:00:12]} 13. Qe2 {[%clk 01:13:04]} {[%emt 00:00:23]} Nd7 {[%clk
00:47:31]} {[%emt 00:02:13]} 14. Ba3 {[%clk 01:01:09]} {[%emt 00:12:24]} dxc4
{[%clk 00:25:39]} {[%emt 00:22:23]} 15. Qxc4 {[%clk 01:01:12]} {[%emt
00:00:27]} e5 {[%clk 00:25:32]} {[%emt 00:00:38]} 16. Rad1 {[%clk 00:35:37]}
{[%emt 00:26:04]} exd4 {[%clk 00:13:04]} {[%emt 00:13:00]} 17. Nxd4 {[%clk
00:29:35]} {[%emt 00:06:31]} Ne5 {[%clk 00:12:40]} {[%emt 00:00:54]} 18. Qe2
{[%clk 00:27:52]} {[%emt 00:02:12]} Bxg2 {[%clk 00:12:35]} {[%emt 00:00:36]} 19.
Kxg2 {[%clk 00:28:20]} {[%emt 00:00:02]} Qd5+ {[%clk 00:12:16]} {[%emt
00:00:49]} 20. e4 {[%clk 00:27:12]} {[%emt 00:01:39]} Qc4 {[%clk 00:12:45]}
{[%emt 00:00:01]} 21. f4 {[%clk 00:22:54]} {[%emt 00:04:47]} Qxe2+ 22. Nxe2
{[%clk 00:23:24]} Nc4 {[%clk 00:06:06]} {[%emt 00:00:05]} 23. Bc1 {[%clk
00:23:35]} {[%emt 00:00:19]} Rfd8 {[%clk 00:04:35]} {[%emt 00:02:01]} 24. e5
{[%clk 00:22:40]} {[%emt 00:01:25]} f6 {[%clk 00:02:21]} {[%emt 00:02:44]} 25.
e6 {[%clk 00:14:34]} {[%emt 00:08:36]} f5 {[%clk 00:02:32]} {[%emt 00:00:19]}
26. e7 {[%clk 00:13:43]} {[%emt 00:01:21]} Re8 {[%clk 00:01:24]} {[%emt
00:01:38]} 27. Rd7 {[%clk 00:14:05]} {[%emt 00:00:08]} b5 {[%clk 00:01:17]}
{[%emt 00:00:38]} 28. Re1 {[%clk 00:12:23]} {[%emt 00:02:11]} Kf7 {[%clk
00:01:01]} {[%emt 00:00:46]} 29. g4 {[%clk 00:06:45]} {[%emt 00:06:08]} fxg4
{[%clk 00:00:41]} {[%emt 00:00:50]} 30. f5 {[%clk 00:06:17]} {[%emt 00:00:58]}
Rxe7 {[%clk 00:00:33]} {[%emt 00:00:38]} 31. Rxe7+ {[%clk 00:05:17]} {[%emt
00:01:30]} Kxe7 {[%clk 00:01:02]} {[%emt 00:00:01]} 32. fxg6 {[%clk 00:02:06]}
{[%emt 00:03:40]} hxg6 {[%clk 00:01:30]} {[%emt 00:00:02]} 33. Nd4+ {[%clk
00:02:26]} {[%emt 00:00:10]} Kd7 {[%clk 00:01:33]} {[%emt 00:00:28]} 34. Ne6
{[%clk 00:02:31]} {[%emt 00:00:25]} Bf8 {[%clk 00:01:45]} {[%emt 00:00:19]} 35.
Nxf8+ {[%clk 00:00:34]} {[%emt 00:02:27]} Rxf8 {[%clk 00:02:13]} {[%emt
00:00:01]} 36. Re4 {[%clk 00:00:37]} {[%emt 00:00:26]} Rf3 {[%clk 00:00:50]}
{[%emt 00:01:53]} 37. Rxg4 {[%clk 00:00:43]} {[%emt 00:00:24]} Rc3 {[%clk
00:01:18]} {[%emt 00:00:02]} 38. Bh6 {[%clk 00:01:01]} {[%emt 00:00:12]} Rc2+
{[%clk 00:01:27]} {[%emt 00:00:22]} 39. Kg3 {[%clk 00:01:26]} {[%emt 00:00:05]}
Rxa2 {[%emt 00:00:55]} 40. Rxg6 {[%clk 00:01:55]} Rb2 {[%clk 00:01:01]} {[%emt
00:00:32]} 41. Bg7 {[%clk 00:00:40]} {[%emt 00:01:45]} a3 {[%clk 00:01:12]}
{[%emt 00:00:19]} 42. h4 {[%clk 00:00:33]} {[%emt 00:00:36]} a2 {[%clk
00:01:14]} {[%emt 00:00:28]} 43. Bxb2 {[%clk 00:00:37]} {[%emt 00:00:27]} Nxb2
{[%clk 00:01:43]} 44. Kg4 {[%clk 00:00:38]} {[%emt 00:00:29]} a1=Q {[%clk
00:02:02]} {[%emt 00:00:11]} 45. h5 {[%clk 00:01:01]} {[%emt 00:00:07]} Nd3
{[%clk 00:02:28]} {[%emt 00:00:04]} 46. Kg5 {[%clk 00:01:03]} {[%emt 00:00:28]}
Qc1+ {[%clk 00:02:35]} {[%emt 00:00:23]} 47. Kf6 {[%clk 00:01:24]} {[%emt
00:00:08]} Qf4+ {[%clk 00:01:54]} {[%emt 00:01:11]} 48. Kg7 {[%clk 00:01:53]}
{[%emt 00:00:01]} Ne5 {[%clk 00:02:16]} {[%emt 00:00:08]} 49. Rh6 {[%clk
00:00:54]} {[%emt 00:01:29]} Qg5 {[%clk 00:01:55]} {[%emt 00:00:51]} 50. Kh7
{[%clk 00:00:39]} {[%emt 00:00:46]} Ke7 {[%clk 00:02:24]} {[%emt 00:00:01]} 51.
Kh8 {[%clk 00:00:35]} {[%emt 00:00:34]} Nf7+ {[%clk 00:02:44]} {[%emt
00:00:09]} 52. Kh7 {[%clk 00:00:35]} {[%emt 00:00:31]} Qxh6 {[%clk 00:03:10]}
{[%emt 00:00:03]} 53. Kg8 {[%clk 00:00:56]} {[%emt 00:00:08]} Qh8+ {[%emt
00:00:06]} 0-1

[Event "CAMPEONATO NACIONAL ABSOLUTO DE CHILE 2019"]
[Site "Torre ENTEL, Chile"]
[Date "2019.02.25"]
[Round "8.2"]
[White "Salinas Herrera, Pablo"]
[Black "Abarca Gonzalez, Nicolas"]
[Result "1-0"]
[TimeControl "90 minutos mas 30 segundos incremento por movida"]
[WhiteTitle "IM"]
[WhiteFideId "3407128"]
[BlackFideId "3409422"]
[WhiteElo "2477"]
[BlackElo "2418"]

1. d4 {[%clk 01:30:58]} {[%emt 00:00:02]} Nf6 {[%clk 01:27:16]} {[%emt
00:03:44]} 2. Nf3 {[%clk 01:31:22]} {[%emt 00:00:05]} g6 {[%clk 01:27:42]}
{[%emt 00:00:04]} 3. Bf4 {[%clk 01:31:47]} {[%emt 00:00:05]} Bg7 {[%clk
01:28:09]} {[%emt 00:00:03]} 4. e3 {[%clk 01:32:08]} {[%emt 00:00:09]} O-O
{[%clk 01:28:27]} {[%emt 00:00:13]} 5. Be2 {[%clk 01:32:33]} {[%emt 00:00:05]}
d5 {[%clk 01:28:24]} {[%emt 00:00:33]} 6. h3 {[%clk 01:32:09]} {[%emt
00:00:53]} c5 {[%clk 01:28:41]} {[%emt 00:00:13]} 7. c3 {[%clk 01:32:35]}
{[%emt 00:00:04]} Nc6 {[%clk 01:28:40]} {[%emt 00:00:31]} 8. O-O {[%clk
01:32:58]} {[%emt 00:00:07]} Qb6 {[%clk 01:24:39]} {[%emt 00:04:32]} 9. Qb3
{[%clk 01:33:16]} {[%emt 00:00:11]} c4 {[%clk 01:14:46]} {[%emt 00:10:22]} 10.
Qa3 {[%clk 01:33:34]} {[%emt 00:00:13]} Bf5 {[%clk 01:10:41]} {[%emt 00:04:35]}
11. Nbd2 {[%clk 01:32:02]} {[%emt 00:02:02]} Rfc8 {[%clk 01:06:41]} {[%emt
00:04:31]} 12. b3 {[%clk 01:32:04]} {[%emt 00:00:28]} Bf8 {[%clk 00:45:47]}
{[%emt 00:21:24]} 13. Qb2 {[%clk 01:30:39]} {[%emt 00:01:54]} cxb3 {[%clk
00:39:38]} {[%emt 00:06:39]} 14. axb3 {[%clk 01:31:03]} {[%emt 00:00:06]} a5
{[%clk 00:38:56]} {[%emt 00:01:13]} 15. Ra2 {[%clk 01:21:13]} {[%emt 00:10:20]}
h6 {[%clk 00:33:38]} {[%emt 00:05:48]} 16. Rfa1 {[%clk 01:19:21]} {[%emt
00:02:22]} g5 {[%clk 00:34:04]} {[%emt 00:00:04]} 17. Bh2 {[%clk 01:19:46]}
{[%emt 00:00:05]} Ra7 {[%clk 00:33:27]} {[%emt 00:01:07]} 18. Ne5 {[%clk
01:18:08]} {[%emt 00:02:07]} e6 {[%clk 00:27:01]} {[%emt 00:06:56]} 19. Ra4
{[%clk 01:06:37]} {[%emt 00:12:00]} Nxe5 {[%clk 00:19:12]} {[%emt 00:08:20]} 20.
Bxe5 {[%clk 01:06:56]} {[%emt 00:00:11]} Nd7 {[%clk 00:19:31]} {[%emt
00:00:11]} 21. Bg3 {[%clk 01:06:16]} {[%emt 00:01:08]} Bb4 {[%clk 00:16:23]}
{[%emt 00:03:39]} 22. cxb4 {[%clk 01:02:58]} {[%emt 00:03:48]} Rc2 {[%clk
00:16:44]} {[%emt 00:00:09]} 23. bxa5 {[%clk 00:56:41]} {[%emt 00:06:48]} Rxb2
{[%clk 00:15:31]} {[%emt 00:01:43]} 24. axb6 {[%clk 00:56:46]} {[%emt
00:00:24]} Rxa4 {[%clk 00:15:58]} {[%emt 00:00:03]} 25. Rxa4 {[%clk 00:56:38]}
{[%emt 00:00:38]} Rxd2 {[%clk 00:16:07]} {[%emt 00:00:21]} 26. Ra8+ {[%clk
00:56:51]} {[%emt 00:00:17]} Kg7 {[%clk 00:09:26]} {[%emt 00:07:11]} 27. Bb5
{[%clk 00:57:09]} {[%emt 00:00:12]} Nxb6 {[%clk 00:09:54]} {[%emt 00:00:03]} 28.
Rb8 {[%clk 00:57:21]} {[%emt 00:00:18]} Bd3 {[%clk 00:08:14]} {[%emt 00:02:10]}
29. Be5+ {[%clk 00:55:48]} {[%emt 00:02:03]} Kg6 {[%clk 00:08:01]} {[%emt
00:00:43]} 30. Rg8+ {[%clk 00:55:34]} {[%emt 00:00:43]} Kf5 {[%clk 00:07:43]}
{[%emt 00:00:48]} 31. Bxd3+ {[%clk 00:55:47]} {[%emt 00:00:16]} Rxd3 {[%clk
00:08:09]} {[%emt 00:00:05]} 32. f3 {[%clk 00:56:13]} {[%emt 00:00:03]} 1-0